Workbook

Sheet Sheet 1 - RENT ROLL - 900_920 N
A1: RENT ROLL - 900 NW 36 Street
A2: Unit # | B2: Tenant | C2: SF | D2: Price/SF | E2: Total Rent Including Cam | F2: Base Rent/Month | G2: Tax Cam | H2: Insurance Cam | I2: Security Cam | J2: Lease Start | K2: Lease Expiration | L2: Landlord Paid Utilities | M2: Increases | N2: Lease Type
A3: 910 | B3: Laundry | C3: 800 | D3: =(E3*12)/C3 -> 31.86659909 | E3: =(F3+G3+H3+I3) -> 2124.439939 | F3: 1400 | G3: =((C3/$C$11)*$B$14)/12 -> 211.0564242 | H3: =((C3/$C$11)*$B$15)/12 -> 176.1713939 | I3: =((C3/$C$11)*$B$20)/12 -> 337.2121212 | J3: 2019-06-14 | K3: 2028-07-31 | L3: Lessee pays own trash collection | M3: Annual %7.7 increases | N3: NNN
A4: 918 | B4: Grocery Store | C4: 4700 | D4: 20.05331398 | E4: 7854.214644 | F4: 3598.13 | G4: =((C4/$C$11)*$B$14)/12 -> 1239.956492 | H4: =((C4/$C$11)*$B$15)/12 -> 1035.006939 | I4: =((C4/$C$11)*$B$20)/12 -> 1981.121212 | J4: 2015-12-14 | K4: 4/29/32 | L4: Includes trash | M4: Annual increase to reflect proportionate share of RE tax and Insurance plus cost of living increases as per C.P.I. | N4: NNN
A5: 920 | B5: Barber | C5: 700 | D5: 40.86659909 | E5: 2383.884947 | F5: 1750 | G5: =((C5/$C$11)*$B$14)/12 -> 184.6743712 | H5: =((C5/$C$11)*$B$15)/12 -> 154.1499697 | I5: =((C5/$C$11)*$B$20)/12 -> 295.0606061 | J5: 2024-02-02 | K5: 1/31/2029 | L5: Includes trash | M5: Annual Increases | N5: Modified Gross
A6: 922 | B6: Smoke Shop | C6: 700 | D6: 45.60908571 | E6: 2660.53 | F6: 2660.53 | J6: 2025-01-20 | K6: 1/20/26 | L6: NONE | N6: NNN
A7: 924 | B7: 1331 Records | C7: 700 | D7: 36 | E7: 2100 | F7: 2100 | J7: 2025-01-01 | K7: 1/1/2026 | L7: NONE | N7: NNN
A8: 926 | B8: Pawn Shop | C8: 2200 | D8: 36.81818182 | E8: 6750 | F8: 6750 | J8: 2015-07-24 | K8: 7/31/2025 *Currently in 5 year option | L8: Includes Trash | M8: Annual market rate increase. If unable to agree, increase based on proportionate share of RE tax and insurance plus 1.5% | N8: Gross
A9: Storage Unit | B9: Sirak Studios | C9: 550 | D9: 10.90909091 | E9: 500 | F9: 500 | J9: 2025-02-15 | K9: 2/15/2028 | L9: None | M9: $100 per year | N9: Gross
A10: 950 (comes with grease traps) | B10: Cafeteria | C10: 650 | D10: 46.41230769 | E10: 2514 | F10: 2514 | J10: 2015 | K10: 10/30/2028 | L10: Includes Water + Trash | N10: Gross
A11: Totals: | C11: =SUM(C3:C10) -> 11000 | E11: =SUM(E3:E10)*12 -> 322644.8344 | F11: =SUM(F3:F10) -> 21272.66
A12: GROSS INCOME | B12: =E11 -> 322644.8344
A13: Expenses
A14: Current Taxes | B14: 34824.31
A15: Insurance | B15: 29068.28 | J15: ,
A16: Maintenance | B16: =1653+4800 -> 6453
A17: Trash | B17: 8460
A18: Electric | B18: 3000
A19: Water (Cafeteria) | B19: 2628
A20: Security | B20: =2140*26 -> 55640
A21: Total: | B21: =SUM(B14:B19) -> 84433.59
A22: NOI | B22: =B12-B21 -> 238211.2444
